Workbook

Sheet tabula
C2: Ģimenes viktorīna (tiešsaistē / vebinārā) | 2026.gada 11.aprīlis
B3: Grupa | C3: # | D3: Dalībnieks | Raunds | Tēma | E3: 1 | F3: 2 | G3: 3 | H3: 4 | I3: 5 | J3: 6 | K3: 7 | L3: 8 | M3: 9 | N3: 10 | O3: KOPĀ | P3: Laiks kopā uz pareizajām atbildēm | Q3: Pareizās atbildes (max) | R3: Vid.laiks uz 1 pareizo atb.
E4: Pavediens: Logo | F4: Ekspresis | G4: Vizuālais: piktogrammas | H4: Divas atbildes | I4: Galda etiķete | J4: Latvija | K4: Risks: Mazie palīgi | L4: Kas kopīgs? | M4: Liekais pazūd: Mērvienības | N4: Audio
D5: Max punkti raundā (bez bonusiem) | E5: 150 | F5: 216 | G5: 150 | H5: 180 | I5: =I6*25 -> 150 | J5: 150 | K5: 120 | L5: 205 | M5: =M6*27 -> 162 | N5: 150 | O5: =SUM(E5:N5) -> 1633
C6: Jautājumi | E6: 6 | F6: 12 | G6: 6 | H6: 6 | I6: 6 | J6: 6 | K6: 6 | L6: 8 | M6: 6 | N6: 6 | Q6: =SUM(E6:N6) -> 68
D7: Vidējie rādītāji | E7: =ROUND(AVERAGE(E8:E1373),1) -> 84.8 | F7: 126.8 | G7: 91.8 | H7: 94.7 | I7: 81.5 | J7: 73.3 | K7: 44.1 | L7: 135.8 | M7: 101.8 | N7: 75.7 | O7: 910.1 | P7: - | Q7: =ROUND(AVERAGE(Q8:Q1373),1) -> 52.2 | R7: -
B8: 3 | C8: 1 | D8: Dura cell | E8: 124 | F8: 117 | G8: 117 | H8: 135 | I8: 121 | J8: 122 | K8: 91 | L8: 187 | M8: 143 | N8: 103 | O8: =SUM(E8:N8) -> 1260 | P8: 08 min. 08,257 | Q8: 66 | R8: 07,398 sek.
B9: 1 | C9: 2 | D9: Sindija DJV | E9: 98 | F9: 174 | G9: 122 | H9: 121 | I9: 104 | J9: 104 | K9: 88 | L9: 182 | M9: 153 | N9: 109 | O9: =SUM(E9:N9) -> 1255 | P9: 06 min. 25,777 | Q9: 63 | R9: 06,123 sek.
B10: 1 | C10: 3 | D10: INSPEKTORS IEPŪTNIS | E10: 121 | F10: 133 | G10: 118 | H10: 115 | I10: 128 | J10: 102 | K10: 95 | L10: 181 | M10: 143 | N10: 86 | O10: =SUM(E10:N10) -> 1222 | P10: 07 min. 37,868 | Q10: 64 | R10: 07,154 sek.
B11: 3 | C11: 4 | D11: Žņaudzējcūkas | E11: 103 | F11: 115 | G11: 111 | H11: 144 | I11: 120 | J11: 95 | K11: 97 | L11: 185 | M11: 139 | N11: 104 | O11: =SUM(E11:N11) -> 1213 | P11: 07 min. 38,792 | Q11: 63 | R11: 07,282 sek.
B12: 1 | C12: 5 | D12: James Cinnabond | E12: 125 | F12: 170 | G12: 122 | H12: 116 | I12: 121 | J12: 85 | K12: 69 | L12: 165 | M12: 151 | N12: 65 | O12: =SUM(E12:N12) -> 1189 | P12: 05 min. 39,325 | Q12: 59 | R12: 05,751 sek.
B13: 3 | C13: 6 | D13: ROGAS | E13: 113 | F13: 102 | G13: 100 | H13: 133 | I13: 135 | J13: 96 | K13: 69 | L13: 189 | M13: 139 | N13: 111 | O13: =SUM(E13:N13) -> 1187 | P13: 06 min. 49,418 | Q13: 60 | R13: 06,824 sek.
B14: 1 | C14: 7 | D14: Bim Bam | E14: 84 | F14: 170 | G14: 121 | H14: 144 | I14: 104 | J14: 90 | K14: 74 | L14: 166 | M14: 133 | N14: 94 | O14: =SUM(E14:N14) -> 1180 | P14: 07 min. 14,923 | Q14: 62 | R14: 07,015 sek.
B15: 1 | C15: 8 | D15: Šukmenistāna | E15: 106 | F15: 163 | G15: 95 | H15: 125 | I15: 92 | J15: 90 | K15: 97 | L15: 159 | M15: 110 | N15: 107 | O15: =SUM(E15:N15) -> 1144 | P15: 07 min. 27,550 | Q15: 61 | R15: 07,337 sek.
B16: 2 | C16: 9 | D16: Sakņu iela | E16: 91 | F16: 123 | G16: 119 | H16: 132 | I16: 85 | J16: 105 | K16: 81 | L16: 153 | M16: 103 | N16: 108 | O16: =SUM(E16:N16) -> 1100 | P16: 08 min. 10,929 | Q16: 59 | R16: 08,309 sek.
B17: 3 | C17: 10 | D17: LaŠteHaHa | E17: 114 | F17: 142 | G17: 107 | H17: 103 | I17: 96 | J17: 112 | K17: 98 | L17: 121 | M17: 129 | N17: 75 | O17: =SUM(E17:N17) -> 1097 | P17: 09 min. 03,232 | Q17: 62 | R17: 08,774 sek.
B18: 2 | C18: 11 | D18: sivēnastes | E18: 114 | F18: 107 | G18: 112 | H18: 132 | I18: 65 | J18: 98 | K18: 71 | L18: 174 | M18: 132 | N18: 82 | O18: =SUM(E18:N18) -> 1087 | P18: 09 min. 42,359 | Q18: 60 | R18: 09,706 sek.
B19: 2 | C19: 12 | D19: nezinu | E19: 91 | F19: 134 | G19: 102 | H19: 125 | I19: 90 | J19: 101 | K19: 55 | L19: 179 | M19: 109 | N19: 91 | O19: =SUM(E19:N19) -> 1077 | P19: 08 min. 49,754 | Q19: 61 | R19: 08,684 sek.
B20: 2 | C20: 13 | D20: Teikas Čiekuri | E20: 93 | F20: 116 | G20: 102 | H20: 102 | I20: 109 | J20: 103 | K20: 80 | L20: 168 | M20: 110 | N20: 84 | O20: =SUM(E20:N20) -> 1067 | P20: 07 min. 30,493 | Q20: 57 | R20: 07,903 sek.
B21: 3 | C21: 14 | D21: ŠANHAJA | E21: 93 | F21: 126 | G21: 115 | H21: 142 | I21: 86 | J21: 97 | K21: 68 | L21: 138 | M21: 88 | N21: 105 | O21: =SUM(E21:N21) -> 1058 | P21: 07 min. 51,077 | Q21: 57 | R21: 08,265 sek.
B22: 1 | C22: 15 | D22: Zepelīni | E22: 126 | F22: 117 | G22: 99 | H22: 115 | I22: 102 | J22: 50 | K22: 100 | L22: 139 | M22: 125 | N22: 84 | O22: =SUM(E22:N22) -> 1057 | P22: 07 min. 55,685 | Q22: 59 | R22: 08,062 sek.
B23: 3 | C23: 16 | D23: Pa Zoino! | E23: 87 | F23: 181 | G23: 77 | H23: 121 | I23: 93 | J23: 78 | K23: 40 | L23: 169 | M23: 114 | N23: 91 | O23: =SUM(E23:N23) -> 1051 | P23: 07 min. 49,723 | Q23: 58 | R23: 08,099 sek.
B24: 3 | C24: 17 | D24: garšo kola | E24: 111 | F24: 133 | G24: 116 | H24: 127 | I24: 133 | J24: 60 | K24: 27 | L24: 155 | M24: 115 | N24: 73 | O24: =SUM(E24:N24) -> 1050 | P24: 06 min. 42,537 | Q24: 56 | R24: 07,188 sek.
B25: 3 | C25: 18 | D25: Ko mēs te dar? | E25: 106 | F25: 168 | G25: 97 | H25: 138 | I25: 75 | J25: 109 | K25: 61 | L25: 136 | M25: 94 | N25: 63 | O25: =SUM(E25:N25) -> 1047 | P25: 08 min. 11,011 | Q25: 58 | R25: 08,474 sek.
B26: 1 | C26: 19 | D26: STŪRĪŠI | E26: 103 | F26: 122 | G26: 97 | H26: 125 | I26: 70 | J26: 104 | K26: 46 | L26: 150 | M26: 128 | N26: 100 | O26: =SUM(E26:N26) -> 1045 | P26: 08 min. 04,094 | Q26: 57 | R26: 08,493 sek.
B27: 1 | C27: 20 | D27: MORO | E27: 106 | F27: 113 | G27: 80 | H27: 138 | I27: 103 | J27: 77 | K27: 58 | L27: 181 | M27: 108 | N27: 77 | O27: =SUM(E27:N27) -> 1041 | P27: 07 min. 59,169 | Q27: 57 | R27: 08,432 sek.
B28: 3 | C28: 21 | D28: Vāveres kosmosā | E28: 72 | F28: 154 | G28: 90 | H28: 112 | I28: 44 | J28: 130 | K28: 62 | L28: 184 | M28: 79 | N28: 106 | O28: =SUM(E28:N28) -> 1033 | P28: 07 min. 24,190 | Q28: 57 | R28: 07,793 sek.
C29: 22 | D29: Podzinieks | E29: 109 | F29: 127 | G29: 94 | H29: 92 | I29: 106 | J29: 65 | K29: 31 | L29: 169 | M29: 123 | N29: 102 | O29: =SUM(E29:N29) -> 1018 | P29: 06 min. 07,455 | Q29: 53 | R29: 06,933 sek.
C30: 23 | D30: Riekstkoži | E30: 96 | F30: 143 | G30: 110 | H30: 69 | I30: 126 | J30: 72 | K30: 76 | L30: 129 | M30: 92 | N30: 92 | O30: =SUM(E30:N30) -> 1005 | P30: 10 min. 14,198 | Q30: 59 | R30: 10,410 sek.
C31: 24 | D31: Ķirsīši | E31: 75 | F31: 165 | G31: 106 | H31: 100 | I31: 95 | J31: 89 | K31: 38 | L31: 124 | M31: 130 | N31: 80 | O31: =SUM(E31:N31) -> 1002 | P31: 07 min. 02,633 | Q31: 55 | R31: 07,684 sek.
C32: 25 | D32: ROTAĻAS ZEM ASTES | E32: 95 | F32: 118 | G32: 90 | H32: 103 | I32: 108 | J32: 103 | K32: 43 | L32: 181 | M32: 99 | N32: 59 | O32: =SUM(E32:N32) -> 999 | P32: 06 min. 56,450 | Q32: 53 | R32: 07,858 sek.
C33: 26 | D33: GO59 | E33: 67 | F33: 140 | G33: 108 | H33: 91 | I33: 104 | J33: 74 | K33: 67 | L33: 178 | M33: 83 | N33: 84 | O33: =SUM(E33:N33) -> 996 | P33: 08 min. 43,569 | Q33: 57 | R33: 09,189 sek.
C34: 27 | D34: Kreisais Krasts | E34: 101 | F34: 121 | G34: 117 | H34: 109 | I34: 87 | J34: 37 | K34: 50 | L34: 162 | M34: 107 | N34: 104 | O34: =SUM(E34:N34) -> 995 | P34: 08 min. 03,146 | Q34: 54 | R34: 08,947 sek.
C35: 28 | D35: Atpūtnieki | E35: 85 | F35: 121 | G35: 109 | H35: 104 | I35: 97 | J35: 91 | K35: 51 | L35: 154 | M35: 107 | N35: 70 | O35: =SUM(E35:N35) -> 989 | P35: 11 min. 22,290 | Q35: 60 | R35: 11,372 sek.
C36: 29 | D36: LBG | E36: 83 | F36: 150 | G36: 76 | H36: 104 | I36: 102 | J36: 84 | K36: 81 | L36: 160 | M36: 96 | N36: 50 | O36: =SUM(E36:N36) -> 986 | P36: 07 min. 50,322 | Q36: 55 | R36: 08,551 sek.
C37: 30 | D37: Čurkstes | E37: 102 | F37: 141 | G37: 84 | H37: 108 | I37: 87 | J37: 92 | K37: 37 | L37: 144 | M37: 115 | N37: 72 | O37: =SUM(E37:N37) -> 982 | P37: 10 min. 20,682 | Q37: 58 | R37: 10,701 sek.
C38: 31 | D38: PutniņiCūciņas | E38: 122 | F38: 174 | G38: 94 | H38: 88 | I38: 45 | J38: 27 | K38: -2 | L38: 180 | M38: 130 | N38: 105 | O38: =SUM(E38:N38) -> 963 | P38: 04 min. 48,929 | Q38: 51 | R38: 05,665 sek.
C39: 32 | D39: Stams | E39: 93 | F39: 134 | G39: 91 | H39: 108 | I39: 127 | J39: 105 | K39: 23 | L39: 103 | M39: 93 | N39: 79 | O39: =SUM(E39:N39) -> 956 | P39: 07 min. 32,822 | Q39: 53 | R39: 07,944 sek.
C40: 33 | D40: ČerČer | E40: 74 | F40: 134 | G40: 100 | H40: 98 | I40: 71 | J40: 84 | K40: 38 | L40: 141 | M40: 124 | N40: 89 | O40: =SUM(E40:N40) -> 953 | P40: 11 min. 31,297 | Q40: 59 | R40: 11,729 sek.
C41: 34 | D41: Doktors Albāns | E41: 84 | F41: 144 | G41: 122 | H41: 90 | I41: 68 | J41: 66 | K41: 74 | L41: 153 | M41: 81 | N41: 70 | O41: =SUM(E41:N41) -> 952 | P41: 09 min. 51,782 | Q41: 56 | R41: 10,568 sek.
C42: 35 | D42: KRĪTIŅI | E42: 81 | F42: 98 | G42: 75 | H42: 126 | I42: 80 | J42: 80 | K42: 29 | L42: 153 | M42: 132 | N42: 88 | O42: =SUM(E42:N42) -> 942 | P42: 10 min. 21,423 | Q42: 57 | R42: 10,902 sek.
C43: 36 | D43: Bērzkalnu saime | E43: 105 | F43: 116 | G43: 67 | H43: 86 | I43: 79 | J43: 100 | K43: 71 | L43: 110 | M43: 122 | N43: 75 | O43: =SUM(E43:N43) -> 931 | P43: 10 min. 34,867 | Q43: 58 | R43: 10,946 sek.
C44: 37 | D44: Čižiks un Pižiks | E44: 86 | F44: 127 | G44: 78 | H44: 129 | I44: 88 | J44: 54 | K44: 44 | L44: 159 | M44: 94 | N44: 72 | O44: =SUM(E44:N44) -> 931 | P44: 08 min. 50,097 | Q44: 54 | R44: 09,817 sek.
C45: 38 | D45: Aitu banda | E45: 61 | F45: 150 | G45: 92 | H45: 87 | I45: 98 | J45: 106 | K45: 32 | L45: 170 | M45: 62 | N45: 66 | O45: =SUM(E45:N45) -> 924 | P45: 09 min. 10,486 | Q45: 55 | R45: 10,009 sek.
C46: 39 | D46: Aizkrauklīte | E46: 86 | F46: 141 | G46: 87 | H46: 126 | I46: 92 | J46: 87 | K46: 60 | L46: 108 | M46: 30 | N46: 103 | O46: =SUM(E46:N46) -> 920 | P46: 05 min. 34,945 | Q46: 49 | R46: 06,836 sek.
C47: 40 | D47: Rudzupuķes | E47: 89 | F47: 118 | G47: 86 | H47: 60 | I47: 40 | J47: 52 | K47: 67 | L47: 172 | M47: 127 | N47: 108 | O47: =SUM(E47:N47) -> 919 | P47: 10 min. 07,650 | Q47: 55 | R47: 11,048 sek.
C48: 41 | D48: Badijs spēlē viktorīnu | E48: 86 | F48: 157 | G48: 100 | H48: 97 | I48: 43 | J48: 123 | K48: 50 | L48: 145 | M48: 37 | N48: 81 | O48: =SUM(E48:N48) -> 919 | P48: 05 min. 50,952 | Q48: 49 | R48: 07,162 sek.
C49: 42 | D49: Virsskaņas alus iznīcinātājs | E49: 98 | F49: 152 | G49: 105 | H49: 53 | I49: 104 | J49: 67 | K49: 35 | L49: 158 | M49: 118 | N49: 23 | O49: =SUM(E49:N49) -> 913 | P49: 05 min. 40,066 | Q49: 49 | R49: 06,960 sek.
C50: 43 | D50: Lieliskie Šss | E50: 68 | F50: 167 | G50: 107 | H50: 75 | I50: 116 | J50: 43 | K50: 27 | L50: 150 | M50: 56 | N50: 99 | O50: =SUM(E50:N50) -> 908 | P50: 07 min. 17,596 | Q50: 52 | R50: 08,415 sek.
C51: 44 | D51: Nejaušie ģēniji | E51: 93 | F51: 92 | G51: 106 | H51: 123 | I51: 43 | J51: 61 | K51: 63 | L51: 136 | M51: 120 | N51: 70 | O51: =SUM(E51:N51) -> 907 | P51: 06 min. 59,549 | Q51: 49 | R51: 08,562 sek.
C52: 45 | D52: Grāvju iela | E52: 94 | F52: 139 | G52: 102 | H52: 62 | I52: 82 | J52: 42 | K52: 56 | L52: 130 | M52: 113 | N52: 81 | O52: =SUM(E52:N52) -> 901 | P52: 10 min. 14,504 | Q52: 55 | R52: 11,173 sek.
C53: 46 | D53: MIKO | E53: 73 | F53: 127 | G53: 101 | H53: 104 | I53: 63 | J53: 61 | K53: 30 | L53: 113 | M53: 117 | N53: 103 | O53: =SUM(E53:N53) -> 892 | P53: 11 min. 11,050 | Q53: 57 | R53: 11,773 sek.
C54: 47 | D54: JĀŅTĀRPIŅI | E54: 71 | F54: 103 | G54: 111 | H54: 81 | I54: 84 | J54: 59 | K54: 37 | L54: 139 | M54: 109 | N54: 98 | O54: =SUM(E54:N54) -> 892 | P54: 09 min. 50,627 | Q54: 55 | R54: 10,739 sek.
C55: 48 | D55: Smilšu rukši | E55: 87 | F55: 126 | G55: 97 | H55: 89 | I55: 19 | J55: 60 | K55: 73 | L55: 174 | M55: 76 | N55: 87 | O55: =SUM(E55:N55) -> 888 | P55: 08 min. 24,078 | Q55: 51 | R55: 09,884 sek.
C56: 49 | D56: Ruma Šķiņķis | E56: 125 | F56: 159 | G56: 87 | H56: 70 | I56: 99 | J56: 24 | K56: 3 | L56: 152 | M56: 120 | N56: 45 | O56: =SUM(E56:N56) -> 884 | P56: 04 min. 41,709 | Q56: 46 | R56: 06,124 sek.
C57: 50 | D57: Es taču teicu! | E57: 79 | F57: 106 | G57: 109 | H57: 80 | I57: 73 | J57: 74 | K57: 27 | L57: 148 | M57: 98 | N57: 86 | O57: =SUM(E57:N57) -> 880 | P57: 10 min. 21,731 | Q57: 54 | R57: 11,514 sek.
C58: 51 | D58: Timijs | E58: 87 | F58: 126 | G58: 87 | H58: 76 | I58: 75 | J58: 76 | K58: 45 | L58: 86 | M58: 119 | N58: 95 | O58: =SUM(E58:N58) -> 872 | P58: 08 min. 28,882 | Q58: 50 | R58: 10,178 sek.
C59: 52 | D59: IP | E59: 77 | F59: 82 | G59: 74 | H59: 60 | I59: 112 | J59: 109 | K59: 70 | L59: 93 | M59: 96 | N59: 85 | O59: =SUM(E59:N59) -> 858 | P59: 04 min. 52,387 | Q59: 45 | R59: 06,509 sek.
C60: 53 | D60: Just80% | E60: 93 | F60: 73 | G60: 52 | H60: 80 | I60: 85 | J60: 72 | K60: 38 | L60: 155 | M60: 112 | N60: 88 | O60: =SUM(E60:N60) -> 848 | P60: 11 min. 00,702 | Q60: 54 | R60: 12,235 sek.
C61: 54 | D61: Barsiks | E61: 75 | F61: 158 | G61: 87 | H61: 53 | I61: 65 | J61: 65 | K61: 66 | L61: 111 | M61: 109 | N61: 59 | O61: =SUM(E61:N61) -> 848 | P61: 07 min. 25,333 | Q61: 50 | R61: 09,007 sek.
C62: 55 | D62: J city meets Riga | E62: 64 | F62: 95 | G62: 74 | H62: 58 | I62: 62 | J62: 87 | K62: 74 | L62: 132 | M62: 141 | N62: 60 | O62: =SUM(E62:N62) -> 847 | P62: 05 min. 43,956 | Q62: 47 | R62: 07,318 sek.
C63: 56 | D63: Sīļi | E63: 62 | F63: 125 | G63: 72 | H63: 62 | I63: 49 | J63: 61 | K63: 56 | L63: 172 | M63: 79 | N63: 100 | O63: =SUM(E63:N63) -> 838 | P63: 10 min. 14,895 | Q63: 54 | R63: 11,387 sek.
C64: 57 | D64: Gulbji Gulbenē | E64: 40 | F64: 110 | G64: 57 | H64: 105 | I64: 92 | J64: 112 | K64: 52 | L64: 96 | M64: 104 | N64: 61 | O64: =SUM(E64:N64) -> 829 | P64: 09 min. 51,496 | Q64: 52 | R64: 11,375 sek.
C65: 58 | D65: Spindzelītes | E65: 73 | F65: 136 | G65: 79 | H65: 96 | I65: 64 | J65: 43 | K65: 22 | L65: 123 | M65: 101 | N65: 87 | O65: =SUM(E65:N65) -> 824 | P65: 07 min. 10,486 | Q65: 47 | R65: 09,271 sek.
C66: 59 | D66: Smadzeņu Šašliks | E66: 71 | F66: 100 | G66: 81 | H66: 65 | I66: 99 | J66: 54 | K66: 74 | L66: 85 | M66: 78 | N66: 100 | O66: =SUM(E66:N66) -> 807 | P66: 09 min. 38,440 | Q66: 51 | R66: 11,342 sek.
C67: 60 | D67: ABL | E67: 68 | F67: 139 | G67: 80 | H67: 116 | I67: 41 | J67: 127 | K67: -24 | L67: 111 | M67: 76 | N67: 68 | O67: =SUM(E67:N67) -> 802 | P67: 10 min. 24,359 | Q67: 52 | R67: 12,007 sek.
C68: 61 | D68: Team Blau | E68: 86 | F68: 113 | G68: 98 | H68: 65 | I68: 45 | J68: 46 | K68: 67 | L68: 134 | M68: 89 | N68: 58 | O68: =SUM(E68:N68) -> 801 | P68: 06 min. 19,372 | Q68: 45 | R68: 08,430 sek.
C69: 62 | D69: Bella | E69: 75 | F69: 157 | G69: 84 | H69: 84 | I69: 71 | J69: 41 | K69: 44 | L69: 76 | M69: 80 | N69: 75 | O69: =SUM(E69:N69) -> 787 | P69: 08 min. 11,076 | Q69: 49 | R69: 10,022 sek.
C70: 63 | D70: JEZE | E70: 88 | F70: 89 | G70: 83 | H70: 58 | I70: 55 | J70: 45 | K70: 41 | L70: 146 | M70: 120 | N70: 61 | O70: =SUM(E70:N70) -> 786 | P70: 07 min. 08,923 | Q70: 47 | R70: 09,126 sek.
C71: 64 | D71: Audzē Dārzu | E71: 73 | F71: 108 | G71: 69 | H71: 92 | I71: 20 | J71: 64 | K71: 31 | L71: 93 | M71: 121 | N71: 100 | O71: =SUM(E71:N71) -> 771 | P71: 10 min. 40,334 | Q71: 50 | R71: 12,823 sek.
C72: 65 | D72: Tosis | E72: 83 | F72: 142 | G72: 69 | H72: 49 | I72: 22 | J72: 78 | K72: 33 | L72: 125 | M72: 109 | N72: 59 | O72: =SUM(E72:N72) -> 769 | P72: 09 min. 58,185 | Q72: 51 | R72: 11,729 sek.
C73: 66 | D73: Spalvainie podnieki | E73: 68 | F73: 104 | G73: 76 | H73: 47 | I73: 66 | J73: 75 | K73: -32 | L73: 140 | M73: 136 | N73: 88 | O73: =SUM(E73:N73) -> 768 | P73: 11 min. 46,481 | Q73: 53 | R73: 13,330 sek.
C74: 67 | D74: Mundžaki | E74: 47 | F74: 100 | G74: 76 | H74: 111 | I74: 40 | J74: 82 | K74: 16 | L74: 155 | M74: 96 | N74: 41 | O74: =SUM(E74:N74) -> 764 | P74: 05 min. 49,004 | Q74: 42 | R74: 08,317 sek.
C75: 68 | D75: Gekons | E75: 85 | F75: 87 | G75: 121 | H75: 90 | I75: 87 | J75: 22 | K75: 50 | L75: 69 | M75: 88 | N75: 41 | O75: =SUM(E75:N75) -> 740 | P75: 06 min. 49,905 | Q75: 43 | R75: 09,545 sek.
C76: 69 | D76: Gelons | E76: 40 | F76: 120 | G76: 102 | H76: 88 | I76: 68 | J76: 43 | K76: 32 | L76: 110 | M76: 63 | N76: 61 | O76: =SUM(E76:N76) -> 727 | P76: 07 min. 04,119 | Q76: 44 | R76: 09,631 sek.
C77: 70 | D77: Līva | E77: 96 | F77: 117 | G77: 93 | H77: 44 | I77: 83 | J77: 85 | K77: 0 | L77: 86 | M77: 72 | N77: 42 | O77: =SUM(E77:N77) -> 718 | P77: 05 min. 44,995 | Q77: 43 | R77: 08,024 sek.
C78: 71 | D78: Kantoris3 | E78: 74 | F78: 132 | G78: 66 | H78: 82 | I78: 99 | J78: 21 | K78: -3 | L78: 124 | M78: 84 | N78: 35 | O78: =SUM(E78:N78) -> 714 | P78: 07 min. 59,967 | Q78: 45 | R78: 10,749 sek.
C79: 72 | D79: Jenseni | E79: 28 | F79: 123 | G79: 109 | H79: 79 | I79: 66 | J79: 79 | K79: -23 | L79: 92 | M79: 115 | N79: 35 | O79: =SUM(E79:N79) -> 703 | P79: 05 min. 24,007 | Q79: 41 | R79: 07,925 sek.
C80: 73 | D80: Andris | E80: 66 | F80: 91 | G80: 80 | H80: 51 | I80: 62 | J80: 66 | K80: -23 | L80: 118 | M80: 123 | N80: 59 | O80: =SUM(E80:N80) -> 693 | P80: 03 min. 24,311 | Q80: 38 | R80: 05,377 sek.
C81: 74 | D81: Barbara | E81: 37 | F81: 117 | G81: 101 | H81: 103 | I81: 80 | J81: 22 | K81: 2 | L81: 71 | M81: 89 | N81: 60 | O81: =SUM(E81:N81) -> 682 | P81: 05 min. 24,786 | Q81: 41 | R81: 07,922 sek.
C82: 75 | D82: Ališa | E82: 98 | F82: 65 | G82: 67 | H82: 22 | I82: 81 | J82: 76 | K82: 32 | L82: 71 | M82: 98 | N82: 45 | O82: =SUM(E82:N82) -> 655 | P82: 05 min. 23,400 | Q82: 38 | R82: 08,511 sek.
C83: 76 | D83: ņega | E83: 73 | F83: 128 | G83: 75 | H83: 48 | I83: 34 | J83: 77 | K83: -29 | L83: 110 | M83: 42 | N83: 59 | O83: =SUM(E83:N83) -> 617 | P83: 06 min. 45,863 | Q83: 40 | R83: 10,279 sek.
C84: 77 | D84: Gandrīz pareizi | E84: 64 | F84: 122 | G84: 67 | H84: 60 | I84: 77 | J84: 19 | K84: 20 | L84: 83 | M84: 76 | N84: 11 | O84: =SUM(E84:N84) -> 599 | P84: 09 min. 08,573 | Q84: 41 | R84: 13,364 sek.
C85: 78 | D85: Karstās čiksas | E85: 73 | F85: 135 | G85: 45 | H85: 71 | I85: 67 | J85: 15 | K85: 7 | L85: 75 | M85: 40 | N85: 52 | O85: =SUM(E85:N85) -> 580 | P85: 09 min. 56,774 | Q85: 43 | R85: 13,878 sek.
C86: 79 | D86: Liepu iela | E86: 71 | F86: 88 | G86: 53 | H86: 94 | I86: 85 | J86: 12 | K86: -45 | L86: 62 | M86: 28 | N86: 9 | O86: =SUM(E86:N86) -> 457 | P86: 07 min. 40,180 | Q86: 34 | R86: 13,535 sek.
C87: 80 | D87: Kaste - Este | E87: 0 | F87: 90 | G87: 34 | H87: 109 | I87: 63 | J87: 0 | K87: 0 | L87: 0 | M87: 0 | N87: 0 | O87: =SUM(E87:N87) -> 296 | P87: 03 min. 17,143 | Q87: 19 | R87: 10,376 sek.

Sheet raundi
B2: =CONCATENATE(tabula!C2," --> Raundu uzvarētāji") -> Ģimenes viktorīna (tiešsaistē / vebinārā) | 2026.gada 11.aprīlis --> Raundu uzvarētāji
B3: # | C3: Raunda nosaukums | D3: Dalībnieks | E3: Rezultāts | F3: AVG | G3: MAX | H3: % no max
B4: 1 | C4: =TRANSPOSE(tabula!E4:N4) -> Pavediens: Logo | D4: Zepelīni | E4: 126 | F4: =TRANSPOSE(tabula!E7:N7) -> 84.8 | G4: =TRANSPOSE(tabula!E5:N5) -> 150 | H4: =E4/G4 -> 0.84
B5: 2 | C5: Ekspresis | D5: Pa Zoino! | E5: 181 | F5: 126.8 | G5: 216 | H5: =E5/G5 -> 0.837962963
B6: 3 | C6: Vizuālais: piktogrammas | D6: James Cinnabond | E6: 122 | F6: 91.8 | G6: 150 | H6: 0.8133333333
B7: 4 | C7: Divas atbildes | D7: Bim Bam | E7: 144 | F7: 94.7 | G7: 180 | H7: 0.8
B8: 5 | C8: Galda etiķete | D8: ROGAS | E8: 135 | F8: 81.5 | G8: 150 | H8: 0.9
B9: 6 | C9: Latvija | D9: Vāveres kosmosā | E9: 130 | F9: 73.3 | G9: 150 | H9: 0.8666666667
B10: 7 | C10: Risks: Mazie palīgi | D10: Zepelīni | E10: 100 | F10: 44.1 | G10: 120 | H10: 0.8333333333
B11: 8 | C11: Kas kopīgs? | D11: ROGAS | E11: 189 | F11: 135.8 | G11: 205 | H11: 0.9219512195
B12: 9 | C12: Liekais pazūd: Mērvienības | D12: Sindija DJV | E12: 153 | F12: 101.8 | G12: 162 | H12: 0.9444444444
B13: 10 | C13: Audio | D13: ROGAS | E13: 111 | F13: 75.7 | G13: 150 | H13: 0.74
B14: - | C14: Uzvarētājs | E14: =tabula!O8 -> 1260 | F14: =tabula!O7 -> 910.1 | G14: =SUM(G4:G13) -> 1633 | H14: =E14/G14 -> 0.771586038
C15: =tabula!D8 -> Dura cell
